Workbook

Sheet Fundamental
A2: 50 | B2: -31.79 | C2: -129.93 | E2: =10^(B2/20) -> 0.02573356764 | F2: =ABS(C2) -> 129.93 | I2: 50 | J2: =C2 -> -129.93 | L2: =SUM(J2:J8)/7 -> -135.6857143
A3: 53 | B3: -30.58 | C3: -134.5 | E3: =10^(B3/20) -> 0.02958012467 | F3: =ABS(C3) -> 134.5 | H3: =SUM(F2:F4)/3 -> 135.8833333 | I3: 51 | J3: =C2-(I3-I2)*((C2-C3)/3) -> -131.4533333
A4: 56 | B4: -29.01 | C4: -143.22 | E4: 0.03544051303 | F4: 143.22 | I4: 52 | J4: =C2-(I4-I2)*((C2-C3)/3) -> -132.9766667
A5: 60 | B5: -28.45 | C5: -157.83 | E5: 0.03780071373 | F5: 157.83 | I5: 53 | J5: =C2-(I5-I2)*((C2-C3)/3) -> -134.5
A6: 63 | B6: -27.9 | C6: -161.46 | E6: 0.04027170343 | F6: 161.46 | I6: 54 | J6: =C3-((I6-I5)*((C3-C4)/3)) -> -137.4066667
A7: 67 | B7: -27.19 | C7: -168.67 | E7: 0.04370186791 | I7: 55 | J7: =C3-((I7-I5)*((C3-C4)/3)) -> -140.3133333
A8: 71 | B8: -26.17 | C8: -172.16 | E8: 0.04914733802 | I8: 56 | J8: =C3-((I8-I5)*((C3-C4)/3)) -> -143.22
A9: 75 | B9: -25.1 | C9: 179.23 | E9: 0.05559042573 | I9: 57
A10: 80 | B10: -24.98 | C10: 168.62 | E10: 0.05636376558 | I10: 58
A11: 85 | B11: -25.06 | C11: 168.58 | E11: 0.05584701947 | I11: 59
A12: 90 | B12: -24.23 | C12: 167.26 | E12: 0.06144690317 | I12: 60
A13: 95 | B13: -23.46 | C13: 170.18 | E13: 0.06714288529 | I13: 61
A14: 100 | B14: -21.79 | C14: 167.26 | E14: 0.08137668608
A15: 106 | B15: -20.86 | C15: 163.92 | E15: 0.09057326009
A16: 112 | B16: -19.64 | C16: 164.81 | E16: 0.1042317429
A17: 118 | B17: -16.93 | C17: 166.95 | E17: 0.1423967247
A18: 125 | B18: -14.19 | C18: 151.69 | E18: 0.1952090734
A19: 132 | B19: -12.91 | C19: 139.31 | E19: 0.226203854
A20: 140 | B20: -11.53 | C20: 125.89 | E20: 0.2651551093
A21: 150 | B21: -10.55 | C21: 109.01 | E21: 0.2968246743
A22: 160 | B22: -10.19 | C22: 95.83 | E22: 0.3093855315
A23: 170 | B23: -9.48 | C23: 86.36 | E23: 0.3357376142
A24: 180 | B24: -8.71 | C24: 71.86 | E24: 0.3668596944
A25: 190 | B25: -8.66 | C25: 56.77 | E25: 0.3689775986
A26: 200 | B26: -9.29 | C26: 47.28 | E26: 0.3431626398
A27: 212 | B27: -9.18 | C27: 35.27 | E27: 0.3475361614
A28: 224 | B28: -10.1 | C28: 22.41 | E28: 0.3126079367
A29: 236 | B29: -11.25 | C29: 15.57 | E29: 0.2738419634
A30: 250 | B30: -12.22 | C30: 11.45 | E30: 0.2449063242
A31: 265 | B31: -13.07 | C31: 10.79 | E31: 0.2220751683
A32: 280 | B32: -12.72 | C32: 11.13 | E32: 0.231206479
A33: 300 | B33: -11.97 | C33: 1.11 | E33: 0.252057718
A34: 315 | B34: -12.38 | C34: -8.59 | E34: 0.24043628
A35: 335 | B35: -13.43 | C35: -15.35 | E35: 0.2130590568
A36: 355 | B36: -13.96 | C36: -18.75 | E36: 0.2004472027
A37: 375 | B37: -14.47 | C37: -22.95 | E37: 0.1890166231
A38: 400 | B38: -14.48 | C38: -27.06 | E38: 0.1887991349
A39: 425 | B39: -14.69 | C39: -37.88 | E39: 0.1842892489
A40: 450 | B40: -16.18 | C40: -44.86 | E40: 0.155238701
A41: 475 | B41: -17.01 | C41: -46.83 | E41: 0.1410912236
A42: 500 | B42: -17.62 | C42: -51.66 | E42: 0.1315224832
A43: 530 | B43: -18.4 | C43: -59.05 | E43: 0.1202264435
A44: 560 | B44: -20.73 | C44: -69.66 | E44: 0.09193904748
A45: 600 | B45: -24.43 | C45: -67.01 | E45: 0.06004820089
A46: 630 | B46: -26.9 | C46: -52.47 | E46: 0.04518559444
A47: 670 | B47: -27 | C47: -32.8 | E47: 0.04466835922
A48: 710 | B48: -25.51 | C48: -21.96 | E48: 0.05302735926
A49: 750 | B49: -24.97 | C49: -22.7 | E49: 0.05642869413
A50: 800 | B50: -25.9 | C50: -31.08 | E50: 0.05069907083
A51: 850 | B51: -27.6 | C51: -10.71 | E51: 0.04168693835
A52: 900 | B52: -24.56 | C52: 12.29 | E52: 0.05915616342
A53: 950 | B53: -22.45 | C53: 8.96 | E53: 0.07542233958
A54: 1000 | B54: -19.48 | C54: 11.23 | E54: 0.1061695557
A55: 1060 | B55: -17.05 | C55: -21.13 | E55: 0.1404429684
A56: 1120 | B56: -20.79 | C56: -38.5 | E56: 0.09130614353
A57: 1180 | B57: -21.78 | C57: -29.1 | E57: 0.0814704284
A58: 1250 | B58: -21.89 | C58: -19.53 | E58: 0.08044517486
A59: 1320 | B59: -19.44 | C59: -16.39 | E59: 0.1066596121
A60: 1400 | B60: -17.63 | C60: -36.86 | E60: 0.1313711495
A61: 1500 | B61: -18.25 | C61: -54.12 | E61: 0.1223207119
A62: 1600 | B62: -18.3 | C62: -83.86 | E62: 0.1216186001
A63: 1700 | B63: -26.3 | C63: -130.87 | E63: 0.04841723676
A64: 1800 | B64: -37.99 | C64: -39.2 | E64: 0.01260375638
A65: 1900 | B65: -22.86 | C65: 28.8 | E65: 0.0719448978
A66: 2000 | B66: -18.74 | C66: -11.44 | E66: 0.1156112242
A67: 2120 | B67: -20.45 | C67: -55.41 | E67: =10^(B67/20) -> 0.09495109992
A68: 2240 | B68: -19.34 | C68: -46.66 | E68: 0.1078946722
A69: 2360 | B69: -19.2 | C69: -50.9 | E69: 0.1096478196
A70: 2500 | B70: -15.89 | C70: -117.39 | E70: 0.1605092258
A71: 2650 | B71: -27.37 | C71: -162.32 | E71: 0.04280554196
A72: 2800 | B72: -27.82 | C72: -88.39 | E72: 0.04064433292
A73: 3000 | B73: -42.87 | C73: 173.08 | E73: 0.007186211584
A74: 3150 | B74: -33.54 | C74: -174.24 | E74: 0.0210377844
A75: 3350 | B75: -38.91 | C75: 108.65 | E75: 0.01133704838
A76: 3550 | B76: -25.08 | C76: -110.2 | E76: 0.05571857489
A77: 3750 | B77: -15.75 | C77: 91.63 | E77: 0.1631172909
A78: 4000 | B78: -19.51 | C78: 27.34 | E78: 0.1058034916
A79: 4250 | B79: -22.2 | C79: 23.32 | E79: 0.07762471166
A80: 4500 | B80: -16.27 | C80: -8.04 | E80: 0.1536384793
A81: 4750 | B81: -23.14 | C81: -22.75 | E81: 0.06966265141
A82: 5000 | B82: -23.32 | C82: -33.65 | E82: 0.06823386941
A83: 5300 | B83: -24.39 | C83: -37.52 | E83: 0.06032537079
A84: 5600 | B84: -21.37 | C84: 3.25 | E84: 0.08540828474
A85: 6000 | B85: -18.23 | C85: -27.15 | E85: 0.1226026903
A86: 6300 | B86: -18.18 | C86: -32.81 | E86: 0.1233104833
A87: 6700 | B87: -19.58 | C87: -101.49 | E87: 0.1049542429
A88: 7100 | B88: -32.66 | C88: -144.41 | E88: 0.02328091258
A89: 7500 | B89: -14.2 | C89: 36.02 | E89: 0.19498446
A90: 8000 | B90: -15.74 | C90: -19.3 | E90: 0.1633051948
A91: 8500 | B91: -22.53 | C91: -91.23 | E91: 0.07473086342
A92: 9000 | B92: -22.98 | C92: -27.52 | E92: 0.0709577768
A93: 9500 | B93: -17.14 | C93: -45.76 | E93: 0.1389952631 | H93: =20*LOG(SUM(E92:E96)/5) -> -21.82566675
A94: 10000 | B94: -16.52 | C94: -97.31 | E94: 0.149279441
A95: 10600 | B95: -32.44 | C95: -1.22 | E95: 0.02387811283
A96: 11200 | B96: -33.11 | C96: 4.19 | E96: 0.02210548256
A97: 11800 | B97: -20.65 | C97: -29.53 | E97: 0.09278974901
A98: 12500 | B98: -26.66 | C98: -67.74 | E98: 0.04645152752
A99: 13200 | B99: -18.89 | C99: -83.37 | E99: 0.1136318298
A100: 14000 | B100: -21.55 | C100: -18.4 | E100: 0.08365655958
A101: 15000 | B101: -19.78 | C101: -89.54 | E101: 0.1025651926
A102: 16000 | B102: -20.5 | C102: -96.89 | E102: 0.09440608763
A103: 17000 | B103: -23.26 | C103: -124.76 | E103: 0.068706844
A104: 18000 | B104: -18.14 | C104: -50.41 | E104: 0.1238796587
A105: 19000 | B105: -19.76 | C105: -112.12 | E105: 0.1028016298
A106: 20000 | B106: -17.24 | C106: 152.61 | E106: 0.1374041975
A107: 21200 | B107: -33.91 | C107: 39.26 | E107: 0.02016043971
A108: 22400 | B108: -28.29 | C108: -137.91 | E108: 0.03850348147

Sheet Sheet1
D4: -30.3851
D5: -30.3851
D6: -29.8594
D7: -28.1113
D8: -27.8313
D9: -26.8776
D10: -26.1114
D11: -25.8145
D12: -25.0465
D13: -24.408
D14: -23.5497
D15: -22.941
D16: -21.8352
D17: -20.2517
D18: -18.219
D19: -16.379
D20: -14.5799
D21: -13.6705
D22: -12.1867
D23: -10.7384
D24: -10.0619
D25: -9.23758
D26: -9.02768
D27: -9.05793
D28: -9.17269
D29: -9.65014
D30: -10.3308
D31: -10.6117
D32: -11.8038
D33: -12.663
D34: -12.4845
D35: -12.6086
D36: -12.5718
D37: -13.191
D38: -13.943
D39: -14.0741
D40: -14.5461
D41: -15.5272
D42: -16.3042
D43: -16.6848
D44: -17.8556
D45: -18.3303
D46: -19.9192
D47: -24.3706
D48: -26.0263
D49: -25.7014
D50: -25.785
D51: -25.8136
D52: -26.0895
D53: -24.922
D54: -23.0228
D55: -21.4551
D56: -20.4914
D57: -20.0906
D58: -20.0029
D59: -19.9944
D60: -20.1533
D61: -20.0012
D62: -19.1564
D63: -18.0546
D64: -20.2242
D65: -23.9246
D66: -24.132
D67: -23.2602
D68: -21.8732
D69: -19.9991
D70: -18.5828
D71: -18.5439
D72: -20.6959
D73: -21.7961
D74: -24.0427
D75: -33.9571
D76: -37.5971
D77: -25.7337
D78: -22.3013
D79: -21.515
D80: -18.7472
D81: -19.8551
D82: -20.6969
D83: -21.3204
D84: -21.1644
D85: -22.9862
D86: -21.4997
D87: -19.246
D88: -18.6396
D89: -18.8751
D90: -19.3525
D91: -18.2991
D92: -16.8123
D93: -19.0159
D94: -19.2921
D95: -20.7651
D96: -21.8257
D97: -21.3699
D98: -23.4914
D99: -24.4701
D100: -22.8863
D101: -21.5007
D102: -21.252
D103: -20.5798
D104: -21.0553
D105: -20.2245
D106: -19.3156
D107: -20.8583
D108: -21.4577
D109: -22.5316
D110: -23.6943

Sheet Smoothed
H1: delta | K1: =2^(1/12) -> 1.059463094 | M1: =2^(1/6) -> 1.122462048 | O1: =2^(1/3) -> 1.25992105 | R1: 3rd octave
A2: 50 | B2: -31.79 | C2: -129.93 | D2: -30.3851 | F2: =20*LOG(Fundamental!E2) -> -31.79 | H2: =F2-B2 -> 0 | I2: =D2-B2 -> 1.4049 | J2: 50 | K2: =J2/K$1 -> 47.19371563 | L2: =J2*K$1 -> 52.97315472 | M2: =J2/M$1 -> 44.54493591 | N2: =J2*M$1 -> 56.12310242 | O2: =J2/O$1 -> 39.6850263 | P2: =J2*O$1 -> 62.99605249
A3: 53 | B3: -30.37 | C3: -135.54 | D3: -30.3851 | F3: =20*LOG((Fundamental!E2+Fundamental!E4)/2) -> -30.28925088 | H3: =F3-B3 -> 0.08074911612 | I3: =D3-B3 -> -0.0151 | J3: 53 | K3: =J3/K$1 -> 50.02533857 | L3: =J3*K$1 -> 56.151544 | M3: =J3/M$1 -> 47.21763206 | N3: =J3*M$1 -> 59.49048856 | O3: =J3/O$1 -> 42.06612788 | P3: =J3*O$1 -> 66.77581564
A4: 56 | B4: -29.3 | C4: -145.31 | D4: -29.8594 | F4: =20*LOG((SUM(Fundamental!E2:E6)-Fundamental!E4)/4) -> -29.53898772 | H4: -0.2389877167 | I4: -0.5594 | J4: 56 | K4: 52.85696151 | L4: 59.32993328 | M4: 49.89032822 | N4: 62.85787471 | O4: 44.44722946 | P4: 70.55557879
A5: 60 | B5: -28.46 | C5: -153.52 | D5: -28.1113 | F5: =20*LOG((SUM(Fundamental!E3:E7)-Fundamental!E5)/4) -> -28.57781205 | H5: -0.1178120467 | I5: 0.3487 | J5: 60 | K5: 56.63245876 | L5: 63.56778566 | M5: 53.45392309 | N5: 67.3477229 | O5: 47.62203156 | P5: 75.59526299
A6: 63 | B6: -27.7 | C6: -161.41 | D6: -27.8313 | F6: =20*LOG((SUM(Fundamental!E4:E8)-Fundamental!E6)/4) -> -27.6343075 | H6: 0.06569250318 | I6: -0.1313 | J6: 63 | K6: 59.4640817 | L6: 66.74617494 | M6: 56.12661924 | N6: 70.71510904 | O6: 50.00313314 | P6: 79.37502614
A7: 67 | B7: -26.88 | C7: -167.9 | D7: -26.8776 | F7: =20*LOG((SUM(Fundamental!E5:E9)-Fundamental!E7)/4) -> -26.80119226 | H7: 0.07880774207 | I7: 0.0024 | J7: 67 | K7: 63.23957895 | L7: 70.98402732 | M7: 59.69021412 | N7: 75.20495724 | O7: 53.17793524 | P7: 84.41471034
A8: 71 | B8: -26.1 | C8: -174.51 | D8: -26.1114 | F8: =20*LOG((SUM(Fundamental!E6:E10)-Fundamental!E8)/4) -> -26.19928024 | H8: -0.09928024285 | I8: -0.0114 | J8: 71 | K8: 67.0150762 | L8: 75.2218797 | M8: 63.25380899 | N8: 79.69480543 | O8: 56.35273734 | P8: 89.45439454
A9: 75 | B9: -25.53 | C9: 178.91 | D9: -25.8145 | F9: =20*LOG((SUM(Fundamental!E7:E11)-Fundamental!E9)/4) -> -25.80358115 | H9: -0.2735811477 | I9: -0.2845 | J9: 75 | K9: 70.79057345 | L9: 79.45973208 | M9: 66.81740386 | N9: 84.18465362 | O9: 59.52753945 | P9: 94.49407874
A10: 80 | B10: -25.06 | C10: 173.49 | D10: -25.0465 | F10: =20*LOG((SUM(Fundamental!E8:E12)-Fundamental!E10)/4) -> -25.11290068 | H10: -0.05290067603 | I10: 0.0135 | J10: 80 | K10: 75.50994501 | L10: 84.75704755 | M10: 71.27189745 | N10: 89.79696386 | O10: 63.49604208 | P10: 100.793684
A11: 85 | B11: -24.6 | C11: 169.79 | D11: -24.408 | F11: =20*LOG((SUM(Fundamental!E9:E13)-Fundamental!E11)/4) -> -24.41730999 | H11: 0.1826900144 | I11: 0.192 | J11: 85 | K11: 80.22931658 | L11: 90.05436302 | M11: 75.72639104 | N11: 95.40927411 | O11: 67.46454471 | P11: 107.0932892
A12: 90 | B12: -23.9 | C12: 168.49 | D12: -23.5497 | F12: =20*LOG((SUM(Fundamental!E10:E14)-Fundamental!E12)/4) -> -23.71736786 | H12: 0.1826321402 | I12: 0.3503 | J12: 90 | K12: 84.94868814 | L12: 95.35167849 | M12: 80.18088463 | N12: 101.0215843 | O12: 71.43304734 | P12: 113.3928945
A13: 95 | B13: -22.89 | C13: 167.74 | D13: -22.941 | F13: =20*LOG((SUM(Fundamental!E11:E15)-Fundamental!E13)/4) -> -22.81591659 | H13: 0.07408341049 | I13: -0.051 | J13: 95 | K13: 89.6680597 | L13: 100.648994 | M13: 84.63537822 | N13: 106.6338946 | O13: 75.40154997 | P13: 119.6924997
A14: 100 | B14: -21.76 | C14: 166.85 | D14: -21.8352 | F14: =20*LOG((SUM(Fundamental!E12:E16)-Fundamental!E14)/4) -> -21.84653941 | H14: -0.08653940658 | I14: -0.0752 | J14: 100 | K14: 94.38743127 | L14: 105.9463094 | M14: 89.08987181 | N14: 112.2462048 | O14: 79.3700526 | P14: 125.992105
A15: 106 | B15: -20.21 | C15: 166.14 | D15: -20.2517 | F15: =20*LOG((SUM(Fundamental!E13:E17)-Fundamental!E15)/4) -> -20.10600321 | H15: 0.1039967931 | I15: -0.0417 | J15: 106 | K15: 100.0506771 | L15: 112.303088 | M15: 94.43526412 | N15: 118.9809771 | O15: 84.13225575 | P15: 133.5516313
A16: 112 | B16: -18.12 | C16: 163.79 | D16: -18.219 | F16: =20*LOG((SUM(Fundamental!E14:E18)-Fundamental!E16)/4) -> -17.89736579 | H16: 0.2226342088 | I16: -0.099 | J16: 112 | K16: 105.713923 | L16: 118.6598666 | M16: 99.78065643 | N16: 125.7157494 | O16: 88.89445891 | P16: 141.1111576
A17: 118 | B17: -16.07 | C17: 158.76 | D17: -16.379 | F17: =20*LOG((SUM(Fundamental!E15:E19)-Fundamental!E17)/4) -> -16.24651321 | H17: -0.1765132055 | I17: -0.309 | J17: 118 | K17: 111.3771689 | L17: 125.0166451 | M17: 105.1260487 | N17: 132.4505217 | O17: 93.65666207 | P17: 148.6706839
A18: 125 | B18: -14.26 | C18: 150.82 | D18: -14.5799 | F18: =20*LOG((SUM(Fundamental!E16:E20)-Fundamental!E18)/4) -> -14.68022052 | H18: -0.4202205236 | I18: -0.3199 | J18: 125 | K18: 117.9842891 | L18: 132.4328868 | M18: 111.3623398 | N18: 140.307756 | O18: 99.21256575 | P18: 157.4901312
A19: 132 | B19: -12.72 | C19: 138.72 | D19: -13.6705 | F19: =20*LOG((SUM(Fundamental!E17:E21)-Fundamental!E19)/4) -> -12.9603501 | H19: -0.240350105 | I19: -0.9505 | J19: 132 | K19: 124.5914093 | L19: 139.8491285 | M19: 117.5986308 | N19: 148.1649904 | O19: 104.7684694 | P19: 166.3095786
A20: 140 | B20: -11.61 | C20: 124.49 | D20: -12.1867 | F20: =20*LOG((SUM(Fundamental!E18:E22)-Fundamental!E20)/4) -> -11.80452238 | H20: -0.1945223806 | I20: -0.5767 | J20: 140 | K20: 132.1424038 | L20: 148.3248332 | M20: 124.7258205 | N20: 157.1446868 | O20: 111.1180736 | P20: 176.388947
A21: 150 | B21: -10.76 | C21: 110.89 | D21: -10.7384 | F21: =20*LOG((SUM(Fundamental!E19:E23)-Fundamental!E21)/4) -> -10.92994776 | H21: -0.1699477608 | I21: 0.0216 | J21: 150 | K21: 141.5811469 | L21: 158.9194642 | M21: 133.6348077 | N21: 168.3693072 | O21: 119.0550789 | P21: 188.9881575
A22: 160 | B22: -10.01 | C22: 97.52 | D22: -10.0619 | F22: =20*LOG((SUM(Fundamental!E20:E24)-Fundamental!E22)/4) -> -10.00229362 | H22: 0.007706380519 | I22: -0.0519 | J22: 160 | K22: 151.01989 | L22: 169.5140951 | M22: 142.5437949 | N22: 179.5939277 | O22: 126.9920842 | P22: 201.587368
A23: 170 | B23: -9.44 | C23: 84.24 | D23: -9.23758 | F23: =20*LOG((SUM(Fundamental!E21:E25)-Fundamental!E23)/4) -> -9.485842086 | H23: -0.04584208596 | I23: 0.20242 | J23: 170 | K23: 160.4586332 | L23: 180.108726 | M23: 151.4527821 | N23: 190.8185482 | O23: 134.9290894 | P23: 214.1865785
A24: 180 | B24: -9.12 | C24: 71.64 | D24: -9.02768 | F24: =20*LOG((SUM(Fundamental!E22:E26)-Fundamental!E24)/4) -> -9.387917167 | H24: -0.2679171669 | I24: 0.09232 | J24: 180 | K24: 169.8973763 | L24: 190.703357 | M24: 160.3617693 | N24: 202.0431687 | O24: 142.8660947 | P24: 226.785789
A25: 190 | B25: -8.99 | C25: 59.18 | D25: -9.05793 | F25: =20*LOG((SUM(Fundamental!E23:E27)-Fundamental!E25)/4) -> -9.160331335 | H25: -0.1703313353 | I25: -0.06793 | J25: 190 | K25: 179.3361194 | L25: 201.2979879 | M25: 169.2707564 | N25: 213.2677892 | O25: 150.8030999 | P25: 239.3849995
A26: 200 | B26: -9.11 | C26: 46.62 | D26: -9.17269 | F26: =20*LOG((SUM(Fundamental!E24:E28)-Fundamental!E26)/4) -> -9.143607245 | H26: -0.03360724545 | I26: -0.06269 | J26: 200 | K26: 188.7748625 | L26: 211.8926189 | M26: 178.1797436 | N26: 224.4924097 | O26: 158.7401052 | P26: 251.98421
A27: 212 | B27: -9.57 | C27: 35.28 | D27: -9.65014 | F27: =20*LOG((SUM(Fundamental!E25:E29)-Fundamental!E27)/4) -> -9.771757816 | H27: -0.2017578162 | I27: -0.08014 | J27: 212 | K27: 200.1013543 | L27: 224.606176 | M27: 188.8705282 | N27: 237.9619542 | O27: 168.2645115 | P27: 267.1032626
A28: 224 | B28: -10.2 | C28: 25.65 | D28: -10.3308 | F28: =20*LOG((SUM(Fundamental!E26:E30)-Fundamental!E28)/4) -> -10.38946236 | H28: -0.1894623564 | I28: -0.1308 | J28: 224 | K28: 211.427846 | L28: 237.3197331 | M28: 199.5613129 | N28: 251.4314988 | O28: 177.7889178 | P28: 282.2223152
A29: 236 | B29: -11 | C29: 18.12 | D29: -10.6117 | F29: =20*LOG((SUM(Fundamental!E27:E31)-Fundamental!E29)/4) -> -11.00175362 | H29: -0.00175362094 | I29: 0.3883 | J29: 236 | K29: 222.7543378 | L29: 250.0332903 | M29: 210.2520975 | N29: 264.9010434 | O29: 187.3133241 | P29: 297.3413678
A30: 250 | B30: -11.87 | C30: 13.64 | D30: -11.8038 | F30: =20*LOG((SUM(Fundamental!E28:E32)-Fundamental!E30)/4) -> -11.7027754 | H30: 0.1672246039 | I30: 0.0662 | J30: 250 | K30: 235.9685782 | L30: 264.8657736 | M30: 222.7246795 | N30: 280.6155121 | O30: 198.4251315 | P30: 314.9802625
A31: 265 | B31: -12.37 | C31: 10.43 | D31: -12.663 | F31: =20*LOG((SUM(Fundamental!E29:E33)-Fundamental!E31)/4) -> -12.02373717 | H31: 0.3462628267 | I31: -0.293 | J31: 265 | K31: 250.1266929 | L31: 280.75772 | M31: 236.0881603 | N31: 297.4524428 | O31: 210.3306394 | P31: 333.8790782
A32: 280 | B32: -12.5 | C32: 6.12 | D32: -12.4845 | F32: =20*LOG((SUM(Fundamental!E30:E34)-Fundamental!E32)/4) -> -12.40052212 | H32: 0.09947787933 | I32: 0.0155 | J32: 280 | K32: 264.2848076 | L32: 296.6496664 | M32: 249.4516411 | N32: 314.2893735 | O32: 222.2361473 | P32: 352.777894
A33: 300 | B33: -12.55 | C33: 0.34 | D33: -12.6086 | F33: =20*LOG((SUM(Fundamental!E31:E35)-Fundamental!E33)/4) -> -12.89119006 | H33: -0.3411900606 | I33: -0.0586 | J33: 300 | K33: 283.1622938 | L33: 317.8389283 | M33: 267.2696154 | N33: 336.7386145 | O33: 238.1101578 | P33: 377.976315
A34: 315 | B34: -12.73 | C34: -6.66 | D34: -12.5718 | F34: =20*LOG((SUM(Fundamental!E32:E36)-Fundamental!E34)/4) -> -12.98757398 | H34: -0.2575739812 | I34: 0.1582 | J34: 315 | K34: 297.3204085 | L34: 333.7308747 | M34: 280.6330962 | N34: 353.5755452 | O34: 250.0156657 | P34: 396.8751307
A35: 335 | B35: -13.17 | C35: -13.4 | D35: -13.191 | F35: =20*LOG((SUM(Fundamental!E33:E37)-Fundamental!E35)/4) -> -13.13224348 | H35: 0.03775651734 | I35: -0.021 | J35: 335 | K35: 316.1978947 | L35: 354.9201366 | M35: 298.4510706 | N35: 376.0247862 | O35: 265.8896762 | P35: 422.0735517
A36: 355 | B36: -13.77 | C36: -18.72 | D36: -13.943 | F36: =20*LOG((SUM(Fundamental!E34:E38)-Fundamental!E36)/4) -> -13.64592829 | H36: 0.1240717072 | I36: -0.173 | J36: 355 | K36: 335.075381 | L36: 376.1093985 | M36: 316.2690449 | N36: 398.4740271 | O36: 281.7636867 | P36: 447.2719727
A37: 375 | B37: -14.23 | C37: -23.84 | D37: -14.0741 | F37: =20*LOG((SUM(Fundamental!E35:E39)-Fundamental!E37)/4) -> -14.12618014 | H37: 0.1038198643 | I37: 0.1559 | J37: 375 | K37: 353.9528673 | L37: 397.2986604 | M37: 334.0870193 | N37: 420.9232681 | O37: 297.6376972 | P37: 472.4703937
A38: 400 | B38: -14.64 | C38: -29.92 | D38: -14.5461 | F38: =20*LOG((SUM(Fundamental!E36:E40)-Fundamental!E38)/4) -> -14.78674725 | H38: -0.1467472511 | I38: 0.0939 | J38: 400 | K38: 377.5497251 | L38: 423.7852377 | M38: 356.3594873 | N38: 448.9848193 | O38: 317.4802104 | P38: 503.96842
A39: 425 | B39: -15.17 | C39: -36.17 | D39: -15.5272 | F39: =20*LOG((SUM(Fundamental!E37:E41)-Fundamental!E39)/4) -> -15.46612467 | H39: -0.296124675 | I39: -0.3572 | J39: 425 | K39: 401.1465829 | L39: 450.2718151 | M39: 378.6319552 | N39: 477.0463705 | O39: 337.3227235 | P39: 535.4664462
A40: 450 | B40: -15.83 | C40: -42.23 | D40: -16.3042 | F40: =20*LOG((SUM(Fundamental!E38:E42)-Fundamental!E40)/4) -> -15.84055597 | H40: -0.01055597499 | I40: -0.4742 | J40: 450 | K40: 424.7434407 | L40: 476.7583925 | M40: 400.9044232 | N40: 505.1079217 | O40: 357.1652367 | P40: 566.9644725
A41: 475 | B41: -16.7 | C41: -47.95 | D41: -16.6848 | F41: =20*LOG((SUM(Fundamental!E39:E43)-Fundamental!E41)/4) -> -16.60538192 | H41: 0.09461807567 | I41: 0.0152 | J41: 475 | K41: 448.3402985 | L41: 503.2449698 | M41: 423.1768911 | N41: 533.1694729 | O41: 377.0077498 | P41: 598.4624987
A42: 500 | B42: -17.7 | C42: -53.7 | D42: -17.8556 | F42: =20*LOG((SUM(Fundamental!E40:E44)-Fundamental!E42)/4) -> -17.91545899 | H42: -0.21545899 | I42: -0.1556 | J42: 500 | K42: 471.9371563 | L42: 529.7315472 | M42: 445.4493591 | N42: 561.2310242 | O42: 396.850263 | P42: 629.9605249
A43: 530 | B43: -18.86 | C43: -59.32 | D43: -18.3303 | F43: =20*LOG((SUM(Fundamental!E41:E45)-Fundamental!E43)/4) -> -19.48158049 | H43: -0.6215804891 | I43: 0.5297 | J43: 530 | K43: 500.2533857 | L43: 561.51544 | M43: 472.1763206 | N43: 594.9048856 | O43: 420.6612788 | P43: 667.7581564
A44: 560 | B44: -20.44 | C44: -61.94 | D44: -19.9192 | F44: =20*LOG((SUM(Fundamental!E42:E46)-Fundamental!E44)/4) -> -20.98825589 | H44: -0.5482558919 | I44: 0.5208 | J44: 560 | K44: 528.5696151 | L44: 593.2993328 | M44: 498.9032822 | N44: 628.5787471 | O44: 444.4722946 | P44: 705.5557879
A45: 600 | B45: -22.53 | C45: -58.76 | D45: -24.3706 | F45: =20*LOG((SUM(Fundamental!E43:E47)-Fundamental!E45)/4) -> -22.44050174 | H45: 0.08949826492 | I45: -1.8406 | J45: 600 | K45: 566.3245876 | L45: 635.6778566 | M45: 534.5392309 | N45: 673.477229 | O45: 476.2203156 | P45: 755.9526299
A46: 630 | B46: -24.79 | C46: -49.52 | D46: -26.0263 | F46: =20*LOG((SUM(Fundamental!E44:E48)-Fundamental!E46)/4) -> -24.0934215 | H46: 0.696578497 | I46: -1.2363 | J46: 630 | K46: 594.640817 | L46: 667.4617494 | M46: 561.2661924 | N46: 707.1510904 | O46: 500.0313314 | P46: 793.7502614
A47: 670 | B47: -25.91 | C47: -38.02 | D47: -25.7014 | F47: =20*LOG((SUM(Fundamental!E45:E49)-Fundamental!E47)/4) -> -25.40496963 | H47: 0.5050303731 | I47: 0.2086 | J47: 670 | K47: 632.3957895 | L47: 709.8402732 | M47: 596.9021412 | N47: 752.0495724 | O47: 531.7793524 | P47: 844.1471034
A48: 710 | B48: -25.89 | C48: -29.81 | D48: -25.785 | F48: =20*LOG((SUM(Fundamental!E46:E50)-Fundamental!E48)/4) -> -26.15268138 | H48: -0.2626813818 | I48: 0.105 | J48: 710 | K48: 670.150762 | L48: 752.218797 | M48: 632.5380899 | N48: 796.9480543 | O48: 563.5273734 | P48: 894.5439454
A49: 750 | B49: -25.84 | C49: -24.37 | D49: -25.8136 | F49: =20*LOG((SUM(Fundamental!E47:E51)-Fundamental!E49)/4) -> -26.46239241 | H49: -0.6223924141 | I49: 0.0264 | J49: 750 | K49: 707.9057345 | L49: 794.5973208 | M49: 668.1740386 | N49: 841.8465362 | O49: 595.2753945 | P49: 944.9407874
A50: 800 | B50: -25.75 | C50: -17.33 | D50: -26.0895 | F50: =20*LOG((SUM(Fundamental!E48:E52)-Fundamental!E50)/4) -> -25.58444927 | H50: 0.1655507333 | I50: -0.3395 | J50: 800 | K50: 755.0994501 | L50: 847.5704755 | M50: 712.7189745 | N50: 897.9696386 | O50: 634.9604208 | P50: 1007.93684
A51: 850 | B51: -25.14 | C51: -9.09 | D51: -24.922 | F51: =20*LOG((SUM(Fundamental!E49:E53)-Fundamental!E51)/4) -> -24.37544157 | H51: 0.7645584283 | I51: 0.218 | J51: 850 | K51: 802.2931658 | L51: 900.5436302 | M51: 757.2639104 | N51: 954.0927411 | O51: 674.6454471 | P51: 1070.932892
A52: 900 | B52: -23.51 | C52: 0.15 | D52: -23.0228 | F52: =20*LOG((SUM(Fundamental!E50:E54)-Fundamental!E52)/4) -> -23.28688903 | H52: 0.2231109664 | I52: 0.4872 | J52: 900 | K52: 849.4868814 | L52: 953.5167849 | M52: 801.8088463 | N52: 1010.215843 | O52: 714.3304734 | P52: 1133.928945
A53: 950 | B53: -21.08 | C53: 4.14 | D53: -21.4551 | F53: =20*LOG((SUM(Fundamental!E51:E55)-Fundamental!E53)/4) -> -21.22321287 | H53: -0.1432128672 | I53: -0.3751 | J53: 950 | K53: 896.680597 | L53: 1006.48994 | M53: 846.3537822 | N53: 1066.338946 | O53: 754.0154997 | P53: 1196.924997
A54: 1000 | B54: -19.73 | C54: -3.51 | D54: -20.4914 | F54: =20*LOG((SUM(Fundamental!E52:E56)-Fundamental!E54)/4) -> -20.76380666 | H54: -1.03380666 | I54: -0.7614 | J54: 1000 | K54: 943.8743127 | L54: 1059.463094 | M54: 890.8987181 | N54: 1122.462048 | O54: 793.700526 | P54: 1259.92105
A55: 1060 | B55: -19.44 | C55: -14.62 | D55: -20.0906 | F55: =20*LOG((SUM(Fundamental!E53:E57)-Fundamental!E55)/4) -> -21.05209842 | H55: -1.612098424 | I55: -0.6506 | J55: 1060 | K55: 1000.506771 | L55: 1123.03088 | M55: 944.3526412 | N55: 1189.809771 | O55: 841.3225575 | P55: 1335.516313
A56: 1120 | B56: -19.63 | C56: -23.22 | D56: -20.0029 | F56: =20*LOG((SUM(Fundamental!E54:E58)-Fundamental!E56)/4) -> -19.81676056 | H56: -0.1867605614 | I56: -0.3729 | J56: 1120 | K56: 1057.13923 | L56: 1186.598666 | M56: 997.8065643 | N56: 1257.157494 | O56: 888.9445891 | P56: 1411.111576
A57: 1180 | B57: -20.34 | C57: -26.47 | D57: -19.9944 | F57: =20*LOG((SUM(Fundamental!E55:E59)-Fundamental!E57)/4) -> -19.59994858 | H57: 0.7400514212 | I57: 0.3456 | J57: 1180 | K57: 1113.771689 | L57: 1250.166451 | M57: 1051.260487 | N57: 1324.505217 | O57: 936.5666207 | P57: 1486.706839
A58: 1250 | B58: -20.31 | C58: -25.67 | D58: -20.1533 | F58: =20*LOG((SUM(Fundamental!E56:E60)-Fundamental!E58)/4) -> -19.76843607 | H58: 0.54156393 | I58: 0.1567 | J58: 1250 | K58: 1179.842891 | L58: 1324.328868 | M58: 1113.623398 | N58: 1403.07756 | O58: 992.1256575 | P58: 1574.901312
A59: 1320 | B59: -19.4 | C59: -28.6 | D59: -20.0012 | F59: =20*LOG((SUM(Fundamental!E57:E61)-Fundamental!E59)/4) -> -19.66753304 | H59: -0.2675330416 | I59: -0.6012 | J59: 1320 | K59: 1245.914093 | L59: 1398.491285 | M59: 1175.986308 | N59: 1481.649904 | O59: 1047.684694 | P59: 1663.095786
A60: 1400 | B60: -18.68 | C60: -39.77 | D60: -19.1564 | F60: =20*LOG((SUM(Fundamental!E58:E62)-Fundamental!E60)/4) -> -19.35076575 | H60: -0.6707657482 | I60: -0.4764 | J60: 1400 | K60: 1321.424038 | L60: 1483.248332 | M60: 1247.258205 | N60: 1571.446868 | O60: 1111.180736 | P60: 1763.88947
A61: 1500 | B61: -18.71 | C61: -62.12 | D61: -18.0546 | F61: =20*LOG((SUM(Fundamental!E59:E63)-Fundamental!E61)/4) -> -19.82657887 | H61: -1.11657887 | I61: 0.6554 | J61: 1500 | K61: 1415.811469 | L61: 1589.194642 | M61: 1336.348077 | N61: 1683.693072 | O61: 1190.550789 | P61: 1889.881575
A62: 1600 | B62: -19.91 | C62: -76.72 | D62: -20.2242 | F62: =20*LOG((SUM(Fundamental!E60:E64)-Fundamental!E62)/4) -> -22.08291018 | H62: -2.172910183 | I62: -0.3142 | J62: 1600 | K62: 1510.1989 | L62: 1695.140951 | M62: 1425.437949 | N62: 1795.939277 | O62: 1269.920842 | P62: 2015.87368
A63: 1700 | B63: -21.65 | C63: -66.65 | D63: -23.9246 | F63: =20*LOG((SUM(Fundamental!E61:E65)-Fundamental!E63)/4) -> -21.71081054 | H63: -0.0608105423 | I63: -2.2746 | J63: 1700 | K63: 1604.586332 | L63: 1801.08726 | M63: 1514.527821 | N63: 1908.185482 | O63: 1349.290894 | P63: 2141.865785
A64: 1800 | B64: -22.64 | C64: -47.23 | D64: -24.132 | F64: =20*LOG((SUM(Fundamental!E62:E66)-Fundamental!E64)/4) -> -20.97344494 | H64: 1.666555059 | I64: -1.492 | J64: 1800 | K64: 1698.973763 | L64: 1907.03357 | M64: 1603.617693 | N64: 2020.431687 | O64: 1428.660947 | P64: 2267.85789
A65: 1900 | B65: -22.15 | C65: -28.75 | D65: -23.2602 | F65: =20*LOG((SUM(Fundamental!E63:E67)-Fundamental!E65)/4) -> -23.36313805 | H65: -1.213138052 | I65: -1.1102 | J65: 1900 | K65: 1793.361194 | L65: 2012.979879 | M65: 1692.707564 | N65: 2132.677892 | O65: 1508.030999 | P65: 2393.849995
A66: 2000 | B66: -20.78 | C66: -20.25 | D66: -21.8732 | F66: =20*LOG((SUM(Fundamental!E64:E68)-Fundamental!E66)/4) -> -22.871633 | H66: -2.091633002 | I66: -1.0932 | J66: 2000 | K66: 1887.748625 | L66: 2118.926189 | M66: 1781.797436 | N66: 2244.924097 | O66: 1587.401052 | P66: 2519.8421
A67: 2120 | B67: -19.73 | C67: -31.14 | D67: -19.9991 | F67: =20*LOG((SUM(Fundamental!E65:E69)-Fundamental!E67)/4) -> -19.88998468 | H67: =F67-B67 -> -0.1599846837 | I67: =D67-B67 -> -0.2691 | J67: 2120 | K67: =J67/K$1 -> 2001.013543 | L67: =J67*K$1 -> 2246.06176 | M67: =J67/M$1 -> 1888.705282 | N67: =J67*M$1 -> 2379.619542 | O67: =J67/O$1 -> 1682.645115 | P67: =J67*O$1 -> 2671.032626
A68: 2240 | B68: -18.84 | C68: -54.35 | D68: -18.5828 | F68: =20*LOG((SUM(Fundamental!E66:E70)-Fundamental!E68)/4) -> -18.4033674 | H68: 0.4366326025 | I68: 0.2572 | J68: 2240 | K68: 2114.27846 | L68: 2373.197331 | M68: 1995.613129 | N68: 2514.314988 | O68: 1777.889178 | P68: 2822.223152
A69: 2360 | B69: -18.63 | C69: -80.95 | D69: -18.5439 | F69: =20*LOG((SUM(Fundamental!E67:E71)-Fundamental!E69)/4) -> -19.86724527 | H69: -1.237245272 | I69: 0.0861 | J69: 2360 | K69: 2227.543378 | L69: 2500.332903 | M69: 2102.520975 | N69: 2649.010434 | O69: 1873.133241 | P69: 2973.413678
A70: 2500 | B70: -19.37 | C70: -99.53 | D70: -20.6959 | F70: =20*LOG((SUM(Fundamental!E68:E72)-Fundamental!E70)/4) -> -22.47009019 | H70: -3.10009019 | I70: -1.3259 | J70: 2500 | K70: 2359.685782 | L70: 2648.657736 | M70: 2227.246795 | N70: 2806.155121 | O70: 1984.251315 | P70: 3149.802625
A71: 2650 | B71: -20.54 | C71: -121.75 | D71: -21.7961 | F71: =20*LOG((SUM(Fundamental!E69:E73)-Fundamental!E71)/4) -> -21.9929964 | H71: -1.452996404 | I71: -1.2561 | J71: 2650 | K71: 2501.266929 | L71: 2807.5772 | M71: 2360.881603 | N71: 2974.524428 | O71: 2103.306394 | P71: 3338.790782
A72: 2800 | B72: -23.81 | C72: -145.86 | D72: -24.0427 | F72: =20*LOG((SUM(Fundamental!E70:E74)-Fundamental!E72)/4) -> -24.74872562 | H72: -0.9387256237 | I72: -0.2327 | J72: 2800 | K72: 2642.848076 | L72: 2966.496664 | M72: 2494.516411 | N72: 3142.893735 | O72: 2222.361473 | P72: 3527.77894
A73: 3000 | B73: -31.07 | C73: -164.1 | D73: -33.9571 | F73: =20*LOG((SUM(Fundamental!E71:E75)-Fundamental!E73)/4) -> -30.76517557 | H73: 0.3048244274 | I73: -2.8871 | J73: 3000 | K73: 2831.622938 | L73: 3178.389283 | M73: 2672.696154 | N73: 3367.386145 | O73: 2381.101578 | P73: 3779.76315
A74: 3150 | B74: -31.25 | C74: -177.95 | D74: -37.5971 | F74: =20*LOG((SUM(Fundamental!E72:E76)-Fundamental!E74)/4) -> -30.83584497 | H74: 0.4141550343 | I74: -6.3471 | J74: 3150 | K74: 2973.204085 | L74: 3337.308747 | M74: 2806.330962 | N74: 3535.755452 | O74: 2500.156657 | P74: 3968.751307
A75: 3350 | B75: -23.71 | C75: 169.14 | D75: -25.7337 | F75: =20*LOG((SUM(Fundamental!E73:E77)-Fundamental!E75)/4) -> -24.18515594 | H75: -0.4751559437 | I75: -2.0237 | J75: 3350 | K75: 3161.978947 | L75: 3549.201366 | M75: 2984.510706 | N75: 3760.247862 | O75: 2658.896762 | P75: 4220.735517
A76: 3550 | B76: -20.5 | C76: 139.16 | D76: -22.3013 | F76: =20*LOG((SUM(Fundamental!E74:E78)-Fundamental!E76)/4) -> -22.4613436 | H76: -1.961343596 | I76: -1.8013 | J76: 3550 | K76: 3350.75381 | L76: 3761.093985 | M76: 3162.690449 | N76: 3984.740271 | O76: 2817.636867 | P76: 4472.719727
A77: 3750 | B77: -19.59 | C77: 108.69 | D77: -21.515 | F77: =20*LOG((SUM(Fundamental!E75:E79)-Fundamental!E77)/4) -> -24.06560604 | H77: -4.475606043 | I77: -1.925 | J77: 3750 | K77: 3539.528673 | L77: 3972.986604 | M77: 3340.870193 | N77: 4209.232681 | O77: 2976.376972 | P77: 4724.703937
A78: 4000 | B78: -18.45 | C78: 65.79 | D78: -18.7472 | F78: =20*LOG((SUM(Fundamental!E76:E80)-Fundamental!E78)/4) -> -18.97503777 | H78: -0.5250377692 | I78: -0.2972 | J78: 4000 | K78: 3775.497251 | L78: 4237.852377 | M78: 3563.594873 | N78: 4489.848193 | O78: 3174.802104 | P78: 5039.6842
A79: 4250 | B79: -18.5 | C79: 19.26 | D79: -19.8551 | F79: =20*LOG((SUM(Fundamental!E77:E81)-Fundamental!E79)/4) -> -18.19798094 | H79: 0.3020190572 | I79: -1.3551 | J79: 4250 | K79: 4011.465829 | L79: 4502.718151 | M79: 3786.319552 | N79: 4770.463705 | O79: 3373.227235 | P79: 5354.664462
A80: 4500 | B80: -19.75 | C80: -2.66 | D80: -20.6969 | F80: =20*LOG((SUM(Fundamental!E78:E82)-Fundamental!E80)/4) -> -21.90231696 | H80: -2.152316961 | I80: -0.9469 | J80: 4500 | K80: 4247.434407 | L80: 4767.583925 | M80: 4009.044232 | N80: 5051.079217 | O80: 3571.652367 | P80: 5669.644725
A81: 4750 | B81: -20.23 | C81: -17.89 | D81: -21.3204 | F81: =20*LOG((SUM(Fundamental!E79:E83)-Fundamental!E81)/4) -> -20.91943515 | H81: -0.6894351542 | I81: -1.0904 | J81: 4750 | K81: 4483.402985 | L81: 5032.449698 | M81: 4231.768911 | N81: 5331.694729 | O81: 3770.077498 | P81: 5984.624987
A82: 5000 | B82: -21.46 | C82: -24.08 | D82: -21.1644 | F82: =20*LOG((SUM(Fundamental!E80:E84)-Fundamental!E82)/4) -> -20.69985371 | H82: 0.7601462921 | I82: 0.2956 | J82: 5000 | K82: 4719.371563 | L82: 5297.315472 | M82: 4454.493591 | N82: 5612.310242 | O82: 3968.50263 | P82: 6299.605249
A83: 5300 | B83: -21.95 | C83: -23.22 | D83: -22.9862 | F83: =20*LOG((SUM(Fundamental!E81:E85)-Fundamental!E83)/4) -> -21.26200036 | H83: 0.6879996395 | I83: -1.0362 | J83: 5300 | K83: 5002.533857 | L83: 5615.1544 | M83: 4721.763206 | N83: 5949.048856 | O83: 4206.612788 | P83: 6677.581564
A84: 5600 | B84: -20.47 | C84: -23.66 | D84: -21.4997 | F84: =20*LOG((SUM(Fundamental!E82:E86)-Fundamental!E84)/4) -> -20.57280322 | H84: -0.1028032244 | I84: -1.0297 | J84: 5600 | K84: 5285.696151 | L84: 5932.993328 | M84: 4989.032822 | N84: 6285.787471 | O84: 4444.722946 | P84: 7055.557879
A85: 6000 | B85: -19.5 | C85: -31.55 | D85: -19.246 | F85: =20*LOG((SUM(Fundamental!E83:E87)-Fundamental!E85)/4) -> -20.58380537 | H85: -1.083805366 | I85: 0.254 | J85: 6000 | K85: 5663.245876 | L85: 6356.778566 | M85: 5345.392309 | N85: 6734.77229 | O85: 4762.203156 | P85: 7559.526299
A86: 6300 | B86: -19.47 | C86: -58.01 | D86: -18.6396 | F86: =20*LOG((SUM(Fundamental!E84:E88)-Fundamental!E86)/4) -> -21.50805392 | H86: -2.038053924 | I86: 0.8304 | J86: 6300 | K86: 5946.40817 | L86: 6674.617494 | M86: 5612.661924 | N86: 7071.510904 | O86: 5000.313314 | P86: 7937.502614
A87: 6700 | B87: -18.76 | C87: -113.57 | D87: -18.8751 | F87: =20*LOG((SUM(Fundamental!E85:E89)-Fundamental!E87)/4) -> -18.70749855 | H87: 0.0525014522 | I87: -0.1151 | J87: 6700 | K87: 6323.957895 | L87: 7098.402732 | M87: 5969.021412 | N87: 7520.495724 | O87: 5317.793524 | P87: 8441.471034
A88: 7100 | B88: -17.54 | C88: 166.02 | D88: -19.3525 | F88: =20*LOG((SUM(Fundamental!E86:E90)-Fundamental!E88)/4) -> -16.67503417 | H88: 0.8649658308 | I88: -1.8125 | J88: 7100 | K88: 6701.50762 | L88: 7522.18797 | M88: 6325.380899 | N88: 7969.480543 | O88: 5635.273734 | P88: 8945.439454
A89: 7500 | B89: -17.36 | C89: 78.99 | D89: -18.2991 | F89: =20*LOG((SUM(Fundamental!E87:E91)-Fundamental!E89)/4) -> -20.76514408 | H89: -3.405144076 | I89: -0.9391 | J89: 7500 | K89: 7079.057345 | L89: 7945.973208 | M89: 6681.740386 | N89: 8418.465362 | O89: 5952.753945 | P89: 9449.407874
A90: 8000 | B90: -17.39 | C90: 4.88 | D90: -16.8123 | F90: =20*LOG((SUM(Fundamental!E88:E92)-Fundamental!E90)/4) -> -20.82026959 | H90: -3.430269586 | I90: 0.5777 | J90: 8000 | K90: 7550.994501 | L90: 8475.704755 | M90: 7127.189745 | N90: 8979.696386 | O90: 6349.604208 | P90: 10079.3684
A91: 8500 | B91: -17.83 | C91: -35.73 | D91: -19.0159 | F91: =20*LOG((SUM(Fundamental!E89:E93)-Fundamental!E91)/4) -> -16.9505226 | H91: 0.8794773965 | I91: -1.1859 | J91: 8500 | K91: 8022.931658 | L91: 9005.436302 | M91: 7572.639104 | N91: 9540.927411 | O91: 6746.454471 | P91: 10709.32892
A92: 9000 | B92: -18.66 | C92: -55.7 | D92: -19.2921 | F92: =20*LOG((SUM(Fundamental!E90:E94)-Fundamental!E92)/4) -> -17.61635481 | H92: 1.043645189 | I92: -0.6321 | J92: 9000 | K92: 8494.868814 | L92: 9535.167849 | M92: 8018.088463 | N92: 10102.15843 | O92: 7143.304734 | P92: 11339.28945
A93: 9500 | B93: -19.06 | C93: -54.2 | D93: -20.7651 | F93: =20*LOG((SUM(Fundamental!E91:E95)-Fundamental!E93)/4) -> -21.96957508 | H93: -2.909575081 | I93: -1.7051 | J93: 9500 | K93: 8966.80597 | L93: 10064.8994 | M93: 8463.537822 | N93: 10663.38946 | O93: 7540.154997 | P93: 11969.24997
A94: 10000 | B94: -19.5 | C94: -38.99 | D94: -21.8257 | F94: =20*LOG((SUM(Fundamental!E92:E96)-Fundamental!E94)/4) -> -23.8785507 | H94: -4.378550703 | I94: -2.3257 | J94: 10000 | K94: 9438.743127 | L94: 10594.63094 | M94: 8908.987181 | N94: 11224.62048 | O94: 7937.00526 | P94: 12599.2105
A95: 10600 | B95: -20.3 | C95: -33 | D95: -21.3699 | F95: =20*LOG((SUM(Fundamental!E93:E97)-Fundamental!E95)/4) -> -19.93143704 | H95: 0.3685629603 | I95: -1.0699 | J95: 10600 | K95: 10005.06771 | L95: 11230.3088 | M95: 9443.526412 | N95: 11898.09771 | O95: 8413.225575 | P95: 13355.16313
A96: 11200 | B96: -22.62 | C96: -27.27 | D96: -23.4914 | F96: =20*LOG((SUM(Fundamental!E94:E98)-Fundamental!E96)/4) -> -22.14701184 | H96: 0.4729881561 | I96: -0.8714 | J96: 11200 | K96: 10571.3923 | L96: 11865.98666 | M96: 9978.065643 | N96: 12571.57494 | O96: 8889.445891 | P96: 14111.11576
A97: 11800 | B97: -23.47 | C97: -33.84 | D97: -24.4701 | F97: =20*LOG((SUM(Fundamental!E95:E99)-Fundamental!E97)/4) -> -25.76103285 | H97: -2.291032851 | I97: -1.0001 | J97: 11800 | K97: 11137.71689 | L97: 12501.66451 | M97: 10512.60487 | N97: 13245.05217 | O97: 9365.666207 | P97: 14867.06839
A98: 12500 | B98: -21.64 | C98: -46.94 | D98: -22.8863 | F98: =20*LOG((SUM(Fundamental!E96:E100)-Fundamental!E98)/4) -> -22.15299756 | H98: -0.5129975555 | I98: -1.2463 | J98: 12500 | K98: 11798.42891 | L98: 13243.28868 | M98: 11136.23398 | N98: 14030.7756 | O98: 9921.256575 | P98: 15749.01312
A99: 13200 | B99: -21.02 | C99: -57.26 | D99: -21.5007 | F99: =20*LOG((SUM(Fundamental!E97:E101)-Fundamental!E99)/4) -> -21.79116659 | H99: -0.7711665939 | I99: -0.4807 | J99: 13200 | K99: 12459.14093 | L99: 13984.91285 | M99: 11759.86308 | N99: 14816.49904 | O99: 10476.84694 | P99: 16630.95786
A100: 14000 | B100: -20.46 | C100: -68.41 | D100: -21.252 | F100: =20*LOG((SUM(Fundamental!E98:E102)-Fundamental!E100)/4) -> -20.98650626 | H100: -0.5265062624 | I100: -0.792 | J100: 14000 | K100: 13214.24038 | L100: 14832.48332 | M100: 12472.58205 | N100: 15714.46868 | O100: 11111.80736 | P100: 17638.8947
A101: 15000 | B101: -20.55 | C101: -77.22 | D101: -20.5798 | F101: =20*LOG((SUM(Fundamental!E99:E103)-Fundamental!E101)/4) -> -20.90547234 | H101: -0.3554723441 | I101: -0.0298 | J101: 15000 | K101: 14158.11469 | L101: 15891.94642 | M101: 13363.48077 | N101: 16836.93072 | O101: 11905.50789 | P101: 18898.81575
A102: 16000 | B102: -20.54 | C102: -86.4 | D102: -21.0553 | F102: =20*LOG((SUM(Fundamental!E100:E104)-Fundamental!E102)/4) -> -20.47281114 | H102: 0.06718886196 | I102: -0.5153 | J102: 16000 | K102: 15101.989 | L102: 16951.40951 | M102: 14254.37949 | N102: 17959.39277 | O102: 12699.20842 | P102: 20158.7368
A103: 17000 | B103: -20.05 | C103: -93.22 | D103: -20.2245 | F103: =20*LOG((SUM(Fundamental!E101:E105)-Fundamental!E103)/4) -> -19.50100295 | H103: 0.5489970533 | I103: -0.1745 | J103: 17000 | K103: 16045.86332 | L103: 18010.8726 | M103: 15145.27821 | N103: 19081.85482 | O103: 13492.90894 | P103: 21418.65785
A104: 18000 | B104: -19.54 | C104: -109.86 | D104: -19.3156 | F104: =20*LOG((SUM(Fundamental!E102:E106)-Fundamental!E104)/4) -> -19.92823138 | H104: -0.3882313836 | I104: 0.2244 | J104: 18000 | K104: 16989.73763 | L104: 19070.3357 | M104: 16036.17693 | N104: 20204.31687 | O104: 14286.60947 | P104: 22678.5789
A105: 19000 | B105: -19.27 | C105: -148.17 | D105: -20.8583 | F105: =20*LOG((SUM(Fundamental!E103:E107)-Fundamental!E105)/4) -> -21.15608894 | H105: -1.886088937 | I105: -1.5883 | J105: 19000 | K105: 17933.61194 | L105: 20129.79879 | M105: 16927.07564 | N105: 21326.77892 | O105: 15080.30999 | P105: 23938.49995
A106: 20000 | B106: -20.19 | C106: 131.4 | D106: -21.4577 | F106: =20*LOG((SUM(Fundamental!E104:E108)-Fundamental!E106)/4) -> -22.93378811 | H106: -2.743788106 | I106: -1.2677 | J106: 20000 | K106: 18877.48625 | L106: 21189.26189 | M106: 17817.97436 | N106: 22449.24097 | O106: 15874.01052 | P106: 25198.421
A107: 21200 | B107: -22.76 | C107: 23.31 | D107: -22.5316 | H107: 22.76 | I107: 0.2284 | J107: 21200 | K107: 20010.13543 | L107: 22460.6176 | M107: 18887.05282 | N107: 23796.19542 | O107: 16826.45115 | P107: 26710.32626
A108: 22400 | B108: -28.29 | C108: -137.91 | D108: -23.6943 | H108: 28.29 | I108: 4.5957 | J108: 22400 | K108: 21142.7846 | L108: 23731.97331 | M108: 19956.13129 | N108: 25143.14988 | O108: 17778.89178 | P108: 28222.23152

Sheet Sheet2
B3: -30.3101
B4: -30.3101
B5: -29.7653
B6: -28.0851
B7: -27.8159
B8: -26.7918
B9: -26.0697
B10: -25.7706
B11: -25.0464
B12: -24.3831
B13: -23.4619
B14: -22.802
B15: -21.6783
B16: -19.9589
B17: -17.7431
B18: -15.8966
B19: -14.1857
B20: -13.4713
B21: -12.0816
B22: -10.7206
B23: -10.0503
B24: -9.21571
B25: -9.0204
B26: -9.05185
B27: -9.15784
B28: -9.60666
B29: -10.2573
B30: -10.537
B31: -11.7332
B32: -12.6559
B33: -12.474
B34: -12.5926
B35: -12.5509
B36: -13.14
B37: -13.9326
B38: -14.0631
B39: -14.5455
B40: -15.4663
B41: -16.2312
B42: -16.5868
B43: -17.736
B44: -18.231
B45: -19.6048
B46: -23.9535
B47: -25.9387
B48: -25.6419
B49: -25.745
B50: -25.7832
B51: -26.025
B52: -24.7185
B53: -22.5575
B54: -20.7653
B55: -20.1304
B56: -19.8582
B57: -19.7929
B58: -19.7843
B59: -19.993
B60: -19.8147
B61: -19.025
B62: -18.0491
B63: -19.7065
B64: -22.5045
B65: -22.7891
B66: -22.2097
B67: -21.0394
B68: -19.8952
B69: -18.4279
B70: -18.3533
B71: -19.7542
B72: -20.1103
B73: -21.3521
B74: -32.4513
B75: -36.828
B76: -22.1703
B77: -20.0232
B78: -19.8891
B79: -18.3538
B80: -19.4236
B81: -20.0945
B82: -20.6775
B83: -20.5505
B84: -22.9153
B85: -21.1604
B86: -19.159
B87: -18.6167
B88: -17.969
B89: -17.8185
B90: -17.1985
B91: -16.3034
B92: -18.4918
B93: -18.8419
B94: -19.7639
B95: -20.2047
B96: -19.8908
B97: -21.6608
B98: -23.0559
B99: -22.0528
B100: -21.1523
B101: -20.89
B102: -20.5502
B103: -20.9415
B104: -20.0494
B105: -19.0732
B106: -20.0068
B107: -20.2981
B108: -21.06
B109: -21.5971

Sheet Unwrap
A2: 50 | B2: -31.79 | C2: -129.93 | E2: -129.93
A3: 53 | B3: -30.37 | C3: -135.54 | E3: -135.54
A4: 56 | B4: -29.3 | C4: -145.31 | E4: -145.31
A5: 60 | B5: -28.46 | C5: -153.52 | E5: -153.52
A6: 63 | B6: -27.7 | C6: -161.41 | E6: -161.41
A7: 67 | B7: -26.88 | C7: -167.9 | E7: -167.9
A8: 71 | B8: -26.1 | C8: -174.51 | E8: -174.51
A9: 75 | B9: -25.53 | C9: -181.09 | E9: -181.09
A10: 80 | B10: -25.06 | C10: -186.51 | E10: -186.51
A11: 85 | B11: -24.6 | C11: -190.21 | E11: -190.21
A12: 90 | B12: -23.9 | C12: -191.51 | E12: -191.51
A13: 95 | B13: -22.89 | C13: -192.26 | E13: -192.26
A14: 100 | B14: -21.76 | C14: -193.15 | E14: -193.15
A15: 106 | B15: -20.21 | C15: -193.86 | E15: -193.86
A16: 112 | B16: -18.12 | C16: -196.21 | E16: -196.21
A17: 118 | B17: -16.07 | C17: -201.24 | E17: -201.24
A18: 125 | B18: -14.26 | C18: -209.18 | E18: -209.18
A19: 132 | B19: -12.72 | C19: -221.28 | E19: -221.28
A20: 140 | B20: -11.61 | C20: -235.51 | E20: -235.51
A21: 150 | B21: -10.76 | C21: -249.11 | E21: -249.11
A22: 160 | B22: -10.01 | C22: -262.48 | E22: -262.48
A23: 170 | B23: -9.44 | C23: -275.76 | E23: -275.76
A24: 180 | B24: -9.12 | C24: -288.36 | E24: -288.36
A25: 190 | B25: -8.99 | C25: -300.82 | E25: -300.82
A26: 200 | B26: -9.11 | C26: -313.38 | E26: -313.38
A27: 212 | B27: -9.57 | C27: -324.72 | E27: -324.72
A28: 224 | B28: -10.2 | C28: -334.35 | E28: -334.35
A29: 236 | B29: -11 | C29: -341.88 | E29: -341.88
A30: 250 | B30: -11.87 | C30: -346.36 | E30: -346.36
A31: 265 | B31: -12.37 | C31: -349.57 | E31: -349.57
A32: 280 | B32: -12.5 | C32: -353.88 | E32: -353.88
A33: 300 | B33: -12.55 | C33: -359.66 | E33: -359.66
A34: 315 | B34: -12.73 | C34: -366.66 | E34: -366.66
A35: 335 | B35: -13.17 | C35: -373.4 | E35: -373.4
A36: 355 | B36: -13.77 | C36: -378.72 | E36: -378.72
A37: 375 | B37: -14.23 | C37: -383.84 | E37: -383.84
A38: 400 | B38: -14.64 | C38: -389.92 | E38: -389.92
A39: 425 | B39: -15.17 | C39: -396.17 | E39: -396.17
A40: 450 | B40: -15.83 | C40: -402.23 | E40: -402.23
A41: 475 | B41: -16.7 | C41: -407.95 | E41: -407.95
A42: 500 | B42: -17.7 | C42: -413.7 | E42: -413.7
A43: 530 | B43: -18.86 | C43: -419.32 | E43: -419.32
A44: 560 | B44: -20.44 | C44: -421.94 | E44: -421.94
A45: 600 | B45: -22.53 | C45: -418.76 | E45: -418.76
A46: 630 | B46: -24.79 | C46: -409.52 | E46: -409.52
A47: 670 | B47: -25.91 | C47: -398.02 | E47: -398.02
A48: 710 | B48: -25.89 | C48: -389.81 | E48: -389.81
A49: 750 | B49: -25.84 | C49: -384.37 | E49: -384.37
A50: 800 | B50: -25.75 | C50: -377.33 | E50: -377.33
A51: 850 | B51: -25.14 | C51: -369.09 | E51: -369.09
A52: 900 | B52: -23.51 | C52: -359.85 | E52: -359.85
A53: 950 | B53: -21.08 | C53: -355.86 | E53: -355.86
A54: 1000 | B54: -19.73 | C54: -363.51 | E54: -363.51
A55: 1060 | B55: -19.44 | C55: -374.62 | E55: -374.62
A56: 1120 | B56: -19.63 | C56: -383.22 | E56: -383.22
A57: 1180 | B57: -20.34 | C57: -386.47 | E57: -386.47
A58: 1250 | B58: -20.31 | C58: -385.67 | E58: -385.67
A59: 1320 | B59: -19.4 | C59: -388.6 | E59: -388.6
A60: 1400 | B60: -18.68 | C60: -399.77 | E60: -399.77
A61: 1500 | B61: -18.71 | C61: -422.12 | E61: -422.12
A62: 1600 | B62: -19.91 | C62: -436.72 | E62: -436.72
A63: 1700 | B63: -21.65 | C63: -426.65 | E63: -426.65
A64: 1800 | B64: -22.64 | C64: -407.23 | E64: -407.23
A65: 1900 | B65: -22.15 | C65: -388.75 | E65: -388.75
A66: 2000 | B66: -20.78 | C66: -380.25 | E66: -380.25
A67: 2120 | B67: -19.73 | C67: -391.14 | E67: -391.14
A68: 2240 | B68: -18.84 | C68: -414.35 | E68: -414.35
A69: 2360 | B69: -18.63 | C69: -440.95 | E69: -440.95
A70: 2500 | B70: -19.37 | C70: -459.53 | E70: -459.53
A71: 2650 | B71: -20.54 | C71: -481.75 | E71: -481.75
A72: 2800 | B72: -23.81 | C72: -505.86 | E72: -505.86
A73: 3000 | B73: -31.07 | C73: -524.1 | E73: -524.1
A74: 3150 | B74: -31.25 | C74: -537.95 | E74: -537.95
A75: 3350 | B75: -23.71 | C75: -550.86 | E75: -550.86
A76: 3550 | B76: -20.5 | C76: -580.84 | E76: -580.84
A77: 3750 | B77: -19.59 | C77: -611.31 | E77: -611.31
A78: 4000 | B78: -18.45 | C78: -654.21 | E78: -654.21
A79: 4250 | B79: -18.5 | C79: -700.74 | E79: -700.74
A80: 4500 | B80: -19.75 | C80: -722.66 | E80: -722.66
A81: 4750 | B81: -20.23 | C81: -737.89 | E81: -737.89
A82: 5000 | B82: -21.46 | C82: -744.08 | E82: -744.08
A83: 5300 | B83: -21.95 | C83: -743.22 | E83: -743.22
A84: 5600 | B84: -20.47 | C84: -743.66 | E84: -743.66
A85: 6000 | B85: -19.5 | C85: -751.55 | E85: -751.55
A86: 6300 | B86: -19.47 | C86: -778.01 | E86: -778.01
A87: 6700 | B87: -18.76 | C87: -833.57 | E87: -833.57
A88: 7100 | B88: -17.54 | C88: -913.98 | E88: -913.98
A89: 7500 | B89: -17.36 | C89: -1001.01 | E89: -1001.01
A90: 8000 | B90: -17.39 | C90: -1075.12 | E90: -1075.12
A91: 8500 | B91: -17.83 | C91: -1115.73 | E91: -1115.73
A92: 9000 | B92: -18.66 | C92: -1135.7 | E92: -1135.7
A93: 9500 | B93: -19.06 | C93: -1134.2 | E93: -1134.2
A94: 10000 | B94: -19.5 | C94: -1118.99 | E94: -1118.99
A95: 10600 | B95: -20.3 | C95: -1113 | E95: -1113
A96: 11200 | B96: -22.62 | C96: -1107.27 | E96: -1107.27
A97: 11800 | B97: -23.47 | C97: -1113.84 | E97: -1113.84
A98: 12500 | B98: -21.64 | C98: -1126.94 | E98: -1126.94
A99: 13200 | B99: -21.02 | C99: -1137.26 | E99: -1137.26
A100: 14000 | B100: -20.46 | C100: -1148.41 | E100: -1148.41
A101: 15000 | B101: -20.55 | C101: -1157.22 | E101: -1157.22
A102: 16000 | B102: -20.54 | C102: -1166.4 | E102: -1166.4
A103: 17000 | B103: -20.05 | C103: -1173.22 | E103: -1173.22
A104: 18000 | B104: -19.54 | C104: -1189.86 | E104: -1189.86
A105: 19000 | B105: -19.27 | C105: -1228.17 | E105: -1228.17
A106: 20000 | B106: -20.19 | C106: -1308.6 | E106: -1308.6
A107: 21200 | B107: -22.76 | C107: -1416.69 | E107: -1416.69
A108: 22400 | B108: -28.29 | C108: -1577.91 | E108: -1577.91
